bitfinex/quotes_ETHUSD_20250106
["timestamp","ask_amount","ask_price","bid_price","bid_amount"]
[1736173032877,0.02632274,3633.0,3631.0,3.51582114]
[1736173033039,2.75274,3632.8,3631.6,2.75359]
[1736173033234,0.35730738,3632.7,3631.6,3.0]
[1736173033590,0.35730738,3632.7,3631.0,2.75401]
[1736173033591,2.75232,3633.3,3632.1,2.7532]
[1736173033765,0.01,3633.4,3632.2,3.30314]
[1736173034068,0.01,3633.4,3632.5,0.55]
[1736173034250,0.01,3633.4,3631.3,3.0]
[1736173034417,0.01,3633.4,3632.3,0.55664096]
[1736173034623,0.01,3633.4,3632.5,2.75285]
[1736173034829,0.362168,3633.4,3632.3,0.55664096]
[1736173035034,0.03440674,3633.3,3632.3,3.30970096]
[1736173035262,0.01,3633.4,3632.3,0.55664096]
[1736173035461,0.01,3633.4,3632.5,2.75289]
[1736173035677,0.01,3633.4,3632.6,2.75283]
[1736173035883,0.01,3633.4,3632.3,0.55664096]
[1736173036041,0.01,3633.4,3632.8,2.75268]
[1736173036739,0.01,3633.4,3632.5,0.015]
[1736173036939,0.01,3633.4,3633.1,2.75247]
[1736173037176,0.01,3633.4,3632.6,2.75284]
[1736173037177,0.01,3633.4,3633.0,0.0075]
[1736173037440,0.01,3633.4,3633.3,3.30231]
[1736173038074,0.03447348,3633.4,3633.3,3.30231]
[1736173038275,0.01,3633.4,3633.3,3.30231]
[1736173038436,0.01,3633.4,3633.3,3.30981]
[1736173038839,0.01,3633.4,3633.3,2.75231]
[1736173039038,0.03623639,3633.4,3633.3,2.75231]
[1736173039345,0.01,3633.4,3633.3,2.75231]
[1736173040641,0.01,3633.4,3633.3,3.30981]
[1736173040958,0.01,3633.4,3633.3,3.31731]
[1736173041690,0.01,3633.4,3633.3,6.31731]
[1736173041844,1e-05,3633.4,3633.3,8.33431]
[1736173042556,1e-05,3633.4,3633.3,6.31731]
[1736173042745,1e-05,3633.4,3633.3,6.30981]
[1736173043189,1e-05,3633.4,3633.3,6.31731]
[1736173043887,1e-05,3633.4,3633.3,6.30981]
[1736173044189,1e-05,3633.4,3633.3,3.30231]
[1736173044337,1e-05,3633.4,3632.9,2.75257]
[1736173044539,1e-05,3633.4,3631.6,3.51582114]
[1736173044744,3.59031103,3633.3,3632.2,2.75314]
[1736173044994,0.3590321,3633.2,3632.3,2.75306]
[1736173045179,0.03440775,3633.1,3632.0,3.0]
[1736173045381,3.13655698,3633.2,3632.0,3.0]
[1736173045573,0.02505147,3633.0,3632.1,0.55]
[1736173045780,0.02632881,3633.1,3632.1,0.55]
[1736173046091,0.02624473,3633.0,3631.8,0.0075]
[1736173046274,0.02624473,3633.0,3631.7,0.5575]
[1736173046275,0.02624473,3633.0,3631.7,0.55]
[1736173046480,0.8126,3633.3,3632.7,2.75276]
[1736173046868,0.02512488,3633.2,3632.7,2.75276]
[1736173047206,0.02512488,3633.2,3631.7,2.75347]
[1736173047515,0.02512488,3633.2,3631.2,3.31230306]
[1736173047516,0.8314,3633.1,3631.2,0.55845306]
[1736173047674,0.8314,3632.7,3631.2,0.55845306]
[1736173047880,0.8314,3632.7,3632.0,2.75328]
[1736173048307,0.8314,3632.7,3632.4,2.75293]
[1736173048602,0.7903,3633.3,3632.7,2.75276]
[1736173048807,0.7903,3633.3,3632.3,0.0075]
[1736173048959,0.7903,3633.3,3632.7,0.55]
[1736173049165,0.0344046,3633.2,3631.7,3.0]
[1736173049364,0.7903,3633.3,3631.8,0.015]
[1736173049560,0.7903,3633.3,3632.7,2.75273]
[1736173049814,0.7903,3633.3,3632.8,2.75268]
[1736173049981,0.02648046,3633.2,3632.8,2.75268]
[1736173050187,0.02648046,3633.2,3632.4,0.0075]
[1736173050380,0.7903,3633.3,3632.5,2.75285]
[1736173050580,0.03440451,3633.2,3631.9,3.0]
[1736173050777,0.02793352,3633.2,3632.0,0.0075]
[1736173051028,0.03440808,3633.2,3632.2,0.55]
[1736173051205,0.03440808,3633.2,3631.6,3.7903]
[1736173051390,0.03440808,3633.2,3631.6,3.54389]
[1736173051391,2.75277,3632.8,3631.6,3.54389]
[1736173051703,0.7979,3632.6,3631.6,0.7903]
[1736173051934,0.03441317,3632.5,3632.4,35.0]
[1736173052084,0.7979,3632.6,3632.4,35.0]
[1736173052272,2.75292,3632.5,3632.4,35.0]
[1736173052472,0.7979,3632.6,3632.4,35.0]
[1736173053316,1.152964,3632.6,3632.4,35.0]
[1736173053612,0.7758,3632.5,3631.3,3.0]
[1736173053797,2.75302,3632.4,3631.3,3.0]
[1736173054001,2.75302,3632.4,3631.2,2.7539]
[1736173054002,0.7758,3632.1,3631.0,2.75403]
[1736173054202,0.03441906,3632.0,3631.0,2.75403]
[1736173054376,2.78772906,3632.0,3630.8,2.75418]
[1736173054573,0.8087,3631.8,3631.1,35.0]
[1736173054819,0.8087,3631.6,3631.1,35.0]
[1736173054989,0.03442423,3631.5,3631.1,35.0]
[1736173055176,0.8087,3631.6,3631.1,35.0]
[1736173055489,0.27877291,3631.9,3631.1,35.0]
[1736173055490,0.8087,3631.4,3631.1,35.0]
[1736173055892,0.8087,3631.4,3631.1,37.75398]
[1736173056374,0.8087,3631.4,3631.1,35.0]
[1736173056574,0.7962,3632.5,3631.1,35.0]
[1736173056826,2.753,3632.4,3631.3,2.75383]
[1736173057032,0.7851,3632.2,3631.2,3.30389]
[1736173057313,0.7851,3632.2,3631.3,2.75382]
[1736173057538,0.7851,3632.2,3631.5,2.75363]
[1736173057733,0.7851,3632.2,3631.9,35.0]
[1736173058921,0.7851,3632.2,3631.5,2.75367]
[1736173059094,0.7851,3632.2,3631.4,0.55527549]
[1736173059278,0.7703,3632.0,3631.5,35.0]
[1736173059474,0.35579467,3631.9,3631.5,35.0]
[1736173059680,0.7703,3632.0,3631.5,35.0]
[1736173060660,2.7536,3631.6,3631.5,35.0]
[1736173060804,3.5723,3631.6,3631.5,35.0]
[1736173061007,2.75406,3631.0,3629.6,0.54717812]
[1736173061275,0.7931,3630.8,3630.2,2.75465]
[1736173061415,0.7931,3630.8,3629.7,3.14876022]
[1736173061610,0.7931,3630.8,3630.2,2.75466]
[1736173061983,0.7931,3630.8,3630.3,35.0]
[1736173062978,0.7931,3630.8,3630.4,0.55]
[1736173063258,0.7931,3630.8,3630.2,2.75464]
[1736173063463,0.7931,3630.8,3629.8,2.7549]
[1736173063623,0.7931,3630.8,3630.3,35.0]
[1736173064822,0.7931,3630.8,3629.9,0.565]
[1736173065040,0.7931,3630.8,3630.1,0.55]
[1736173065241,0.7931,3630.8,3630.2,2.75466]
[1736173065563,0.7931,3630.8,3630.7,35.0]
[1736173066273,0.7671,3631.1,3630.7,35.0]
[1736173066496,0.7671,3631.1,3630.6,2.75429]
[1736173066697,0.7885,3631.6,3630.6,0.565]
[1736173066899,1.1276285,3631.7,3631.5,35.0]
[1736173067038,1.71391133,3631.7,3631.5,35.0]
[1736173067237,1.71391133,3631.7,3629.3,0.7680335]
[1736173067238,0.7661,3631.6,3630.2,2.75461]
[1736173067480,2.75391,3631.2,3629.8,0.7697]
[1736173067695,2.75391,3631.2,3630.2,0.55]
[1736173067835,2.78842711,3631.1,3630.3,35.0]
[1736173068198,0.8091,3631.0,3630.4,0.5]
[1736173068693,0.03442987,3630.9,3630.4,0.5]
[1736173069245,0.8091,3631.0,3630.4,0.5]
[1736173069795,0.80578567,3631.0,3630.4,0.5]
[1736173069937,0.03442987,3630.9,3630.4,0.5]
[1736173070568,2.75414,3630.9,3630.4,0.5]
[1736173070800,0.35599257,3630.9,3630.4,0.5]
[1736173071415,0.80578567,3631.0,3630.5,35.0]
[1736173072745,3.55984567,3631.0,3630.5,35.0]
[1736173072945,2.78858058,3630.9,3630.5,35.0]
[1736173073492,3.55987567,3631.0,3630.5,35.0]
[1736173073984,0.80578567,3631.0,3630.5,35.0]
[1736173074207,0.80578567,3631.0,3630.4,0.5]
[1736173074510,0.7712,3631.5,3630.6,0.015]
[1736173074644,0.7712,3631.5,3631.4,35.0]
[1736173074848,1.1276285,3631.7,3631.4,35.0]
[1736173075162,1.1276285,3632.0,3631.9,3.31837]
[1736173075876,1.1276285,3632.0,3631.9,38.30337]
[1736173076090,1.1276285,3632.0,3631.9,35.0]
[1736173076413,1.1276285,3632.0,3631.9,37.75337]
[1736173076566,0.2496,3632.6,3631.9,35.0]
[1736173076771,0.37861,3632.5,3631.5,3.0]
[1736173076950,0.37861,3632.5,3631.5,2.75364]
[1736173076951,0.03441528,3632.4,3631.5,2.75364]
[1736173077163,0.03441528,3632.4,3632.3,35.0]
[1736173077457,2.75295,3632.5,3632.3,35.0]
[1736173077780,0.8325,3632.3,3630.7,0.7835]
[1736173078105,2.75345,3631.9,3630.8,37.75417]
[1736173078262,0.7785,3631.7,3630.8,35.0]
[1736173078599,0.27878692,3631.9,3630.9,0.55]
[1736173078804,0.27878692,3631.9,3630.7,3.53776]
[1736173078805,0.27878692,3631.9,3631.1,0.55]
[1736173079040,0.27878692,3631.9,3631.4,35.0]
[1736173079629,0.7785,3632.1,3631.6,2.7536]
[1736173079842,0.7785,3632.1,3631.5,0.55]
[1736173079999,0.7785,3632.1,3631.8,2.75345]
[1736173080196,0.7505,3632.5,3632.1,2.75316]
[1736173080433,0.2496,3632.6,3631.9,0.015]
[1736173080585,0.2496,3632.6,3631.6,0.7881]
[1736173080783,0.2496,3632.6,3632.2,35.0]
[1736173080988,0.62832002,3632.6,3632.2,35.0]
[1736173081190,0.2496,3632.6,3632.2,35.0]
[1736173082084,0.79241456,3632.5,3631.2,0.8159]
[1736173082288,2.75316,3632.2,3631.1,2.75396]
[1736173082500,0.2496,3632.6,3630.8,0.8105]
[1736173082501,0.758,3632.0,3630.8,0.8105]
[1736173082710,0.03441963,3631.9,3630.3,2.75452]
[1736173082922,2.75405,3631.1,3629.9,2.75487]
[1736173083129,0.758,3630.9,3629.5,1.13875582]
[1736173083331,0.03443068,3630.8,3629.5,1.13875582]
[1736173083547,3.51094,3630.5,3629.5,1.13875582]
[1736173083687,0.7565,3630.5,3629.5,1.13875582]
[1736173083893,3.51094,3630.5,3630.4,35.5]
[1736173084206,4.13746,3630.5,3630.4,35.5]
[1736173084540,1.38302,3630.5,3630.4,35.5]
[1736173084747,1.38302,3630.5,3629.6,2.75512]
[1736173084901,2.75451,3630.4,3629.2,3.565]
[1736173085104,0.03443399,3630.3,3629.1,0.7509]
[1736173085425,0.03443399,3630.3,3628.5,1.102518]
[1736173085426,0.7573,3630.0,3628.7,3.518]
[1736173085636,0.03443882,3629.9,3628.8,2.75571]
[1736173085792,0.7573,3630.0,3629.7,35.0]
[1736173086125,1.108511,3630.0,3629.7,35.0]
[1736173086495,0.03443754,3629.9,3629.7,35.0]
[1736173086657,2.75497,3629.8,3629.7,35.0]
[1736173087352,3.51212,3630.0,3629.7,35.0]
[1736173087659,0.03443864,3629.9,3629.7,35.0]
[1736173087836,2.75497,3629.8,3629.7,35.0]
[1736173088006,3.38511886,3629.8,3629.7,35.0]
[1736173088402,3.38511886,3629.8,3628.7,2.75578]
[1736173088610,0.63014886,3629.8,3628.8,0.5575]
[1736173089036,3.38512886,3629.8,3628.8,0.5575]
[1736173089301,0.7573,3630.0,3629.0,0.55]
[1736173089532,0.7573,3630.0,3629.1,0.565]
[1736173090005,0.79173608,3630.0,3629.1,0.015]
[1736173090213,0.7573,3630.0,3629.1,0.015]
[1736173090629,2.75504,3629.8,3628.7,0.14282071]
[1736173090878,0.35467761,3629.7,3628.3,3.51553]
[1736173091177,2.75527,3629.4,3627.9,0.8121]
[1736173091315,2.75527,3629.4,3627.4,0.43116986]
[1736173091316,2.75579,3628.8,3627.5,0.8121]
[1736173091668,2.79026044,3628.7,3627.6,0.0075]
[1736173091875,0.7633,3628.6,3627.5,0.8121]
[1736173092026,2.75598,3628.5,3627.5,0.8121]
[1736173092221,2.79043111,3628.5,3627.5,0.8121]
[1736173092571,3.51919,3628.6,3627.6,0.5575]
[1736173092767,0.7633,3628.6,3627.6,0.5575]
[1736173093059,0.7633,3628.6,3627.2,0.55313652]
[1736173093283,2.75611,3628.3,3627.1,3.57904]
[1736173093464,0.03445396,3628.2,3627.2,2.75692]
[1736173093644,0.35538623,3628.3,3627.2,0.0075]
[1736173093852,3.51924,3628.6,3627.2,0.015]
[1736173094172,0.7633,3628.6,3627.9,0.55]
[1736173095038,0.7633,3628.6,3627.9,0.5575]
[1736173095423,0.03444832,3628.5,3626.8,0.14282506]
[1736173095754,0.7633,3628.6,3627.6,2.75663]
[1736173096071,0.7633,3628.6,3627.2,0.015]
[1736173096278,0.7633,3628.6,3627.6,2.75664]
[1736173096580,0.7794,3629.0,3627.9,0.015]
[1736173096756,0.7794,3629.0,3628.2,2.75618]
[1736173097074,0.7794,3629.0,3627.8,0.7747]
[1736173097075,0.7794,3629.0,3628.0,2.75631]
[1736173097284,0.7794,3629.0,3628.2,2.75618]
[1736173097498,1.1276285,3629.8,3628.1,5.51252]
[1736173097499,0.7655,3629.4,3628.1,5.51252]
[1736173097826,0.7655,3629.4,3628.7,0.55]
[1736173098319,0.7655,3629.4,3628.8,0.55]
[1736173098975,0.7655,3629.4,3628.7,0.55]
[1736173099180,0.7655,3629.4,3628.9,2.75565]
[1736173099379,0.7655,3629.4,3629.0,0.55]
[1736173099699,0.7739,3630.0,3629.0,3.30554]
[1736173099904,1.126766,3630.0,3629.0,3.30554]
[1736173100066,2.75516,3629.6,3628.6,3.8211]
[1736173100266,0.7751,3629.5,3628.7,0.55]
[1736173100621,0.80954238,3629.5,3628.3,2.75604]
[1736173100792,0.80954238,3629.5,3628.8,2.75572]
[1736173100793,0.7751,3629.5,3628.8,2.75572]
[1736173100963,0.7751,3629.5,3629.1,0.55]
[1736173101165,0.7941,3630.0,3629.2,0.015]
[1736173101365,0.7941,3630.0,3629.2,0.0075]
[1736173101593,0.7941,3630.0,3629.5,2.75519]
[1736173101797,0.8313,3630.4,3628.9,0.565]
[1736173102000,0.8313,3630.4,3628.5,11.56]
[1736173102001,0.8313,3630.4,3629.7,2.75502]
[1736173102208,0.8313,3630.4,3629.1,0.7729]
[1736173102209,0.8313,3630.4,3629.6,2.7551]
[1736173102415,0.8313,3630.4,3629.1,0.7729]
[1736173102620,0.8313,3630.4,3629.9,0.55]
[1736173102796,0.19589285,3630.3,3629.4,2.75523]
[1736173102965,0.19589285,3630.3,3628.7,3.54275]
[1736173102966,0.757,3630.1,3628.7,3.54275]
[1736173103166,0.757,3629.4,3628.1,0.787]
[1736173103367,2.75535,3629.3,3628.2,2.75618]
[1736173103626,2.75572,3628.9,3627.6,2.75657]
[1736173103917,2.75583,3628.7,3627.6,2.75657]
[1736173104089,2.75583,3628.7,3627.3,1.44251747]
[1736173104090,0.7868,3627.9,3627.3,2.58127329]
[1736173104509,0.82125572,3627.9,3627.3,2.58127329]
[1736173104708,2.75656,3627.8,3627.3,2.58127329]
[1736173105031,2.79101857,3627.8,3627.3,2.58127329]
[1736173105171,3.14880043,3627.8,3627.3,1.44251747]
[1736173105494,0.39224043,3627.8,3627.3,1.44251747]
[1736173105663,0.03445857,3627.8,3627.3,1.44251747]
[1736173105863,2.79094857,3627.8,3627.3,1.44251747]
[1736173106466,0.03445857,3627.8,3627.3,1.44251747]
[1736173106674,2.75667,3627.6,3627.3,1.44251747]
[1736173107096,2.75649,3627.8,3627.3,0.29275661]
[1736173107413,3.54769,3627.4,3627.3,0.29275661]
[1736173107585,2.75705,3627.1,3625.9,2.7579]
[1736173108112,3.54776,3627.4,3626.2,2.75768]
[1736173108326,0.7909,3627.4,3625.9,3.51342577]
[1736173108483,0.7909,3627.4,3626.8,0.55]
[1736173108667,0.7909,3627.4,3626.7,2.75729]
[1736173108668,0.7909,3627.4,3626.7,2.75728]
[1736173109067,1.1276285,3628.7,3626.8,0.565]
[1736173109302,0.7919,3628.3,3626.9,0.7506]
[1736173109681,0.7919,3628.3,3626.0,0.14296735]
[1736173109883,0.7919,3628.3,3626.3,3.565]
[1736173110119,0.7919,3628.3,3627.0,0.55]
[1736173110422,1.1276285,3628.4,3626.6,2.75739]
[1736173110423,2.75649,3627.9,3626.6,2.75739]
[1736173110638,0.03446237,3627.8,3626.3,0.565]
[1736173110918,2.75671,3627.6,3626.2,3.0]
[1736173111085,2.75671,3627.6,3626.5,2.75747]
[1736173111698,0.8268,3627.7,3626.2,2.75764]
[1736173111885,3.5834,3627.7,3626.4,2.75748]
[1736173112163,0.35834,3627.6,3626.4,0.0075]
[1736173112369,0.8268,3627.7,3626.6,0.0075]
[1736173112578,0.8268,3627.7,3627.0,2.75709]
[1736173112801,0.8127,3628.1,3627.1,2.75701]
[1736173112984,0.8127,3628.1,3627.0,0.015]
[1736173113224,3.52096,3628.9,3627.7,2.75651]
[1736173113425,2.75588,3628.6,3627.4,2.75678]
[1736173113582,0.03445365,3628.5,3627.4,2.75678]
[1736173113780,0.7869,3628.3,3626.9,0.565]
[1736173114019,0.7869,3628.3,3627.4,0.55]
[1736173114430,0.7869,3628.3,3627.4,2.75676]
[1736173114573,0.354286,3628.2,3627.4,2.75676]
[1736173115131,0.354286,3628.2,3627.3,0.55]
[1736173115311,3.14493117,3628.2,3627.3,0.55]
[1736173115629,3.14493117,3628.2,3626.4,3.51342577]
[1736173115630,0.8169,3628.1,3626.3,0.755]
[1736173115855,6.26922577,3628.7,3626.3,0.755]
[1736173115856,0.7732,3627.4,3626.5,2.75744]
[1736173117765,0.7732,3627.4,3626.3,0.755]
[1736173117992,0.7732,3627.4,3626.6,2.75738]
[1736173118158,1.126184,3627.4,3626.6,2.75738]
[1736173118683,0.7732,3627.4,3626.1,0.565]
[1736173118865,0.03446305,3627.3,3626.5,0.55]
[1736173119504,2.75727,3626.8,3625.4,0.5256539]
[1736173119811,0.7984,3626.6,3625.4,0.5256539]
[1736173120101,0.7756,3626.3,3625.4,0.5256539]
[1736173120302,0.03447522,3626.2,3625.4,0.5256539]
[1736173120464,2.75773,3626.2,3625.4,0.5256539]
[1736173120669,2.75778,3626.1,3625.4,0.5256539]
[1736173120848,0.8088,3625.8,3625.4,0.5256539]
[1736173121053,3.56704,3625.5,3625.4,0.5256539]
[1736173121316,2.75824,3625.5,3625.1,0.00275]
[1736173121634,3.53716,3625.2,3625.1,0.00275]
[1736173121753,3.57164475,3625.2,3625.1,0.00275]
[1736173121951,3.89432448,3625.2,3625.1,0.00275]
[1736173122669,3.92881317,3625.2,3625.1,0.00275]
[1736173122888,3.89432448,3625.2,3625.1,0.00275]
[1736173123291,1.13586448,3625.2,3625.1,0.00275]
[1736173123469,0.7739,3625.8,3625.1,0.00275]
[1736173123885,4.6591185,3626.4,3625.2,2.75846]
[1736173124516,2.75778,3626.2,3625.1,3.31128]
[1736173124734,1.9015285,3626.4,3625.2,2.75845]
[1736173124869,0.63505113,3626.3,3625.2,2.75845]
[1736173125066,0.7739,3626.4,3625.1,0.55275]
[1736173125268,0.03447637,3626.3,3625.1,2.76127]
[1736173125468,3.53146,3626.4,3625.2,2.75842]
[1736173125669,0.7739,3626.4,3625.3,2.75832]
[1736173125873,0.7739,3626.4,3625.5,2.75817]
[1736173126099,0.7739,3626.4,3625.5,0.55]
[1736173126478,0.7739,3626.4,3625.6,0.55]
[1736173126727,0.7739,3626.4,3625.4,2.7583]
[1736173126913,0.7739,3626.4,3625.6,2.75815]
[1736173127087,0.7739,3626.4,3625.0,0.005]
[1736173127284,0.03447493,3626.3,3625.2,2.75841]
[1736173127516,0.03447493,3626.3,3625.0,0.57]
[1736173127673,3.53146,3626.4,3625.2,2.75839]
[1736173128037,3.884606,3626.4,3625.3,2.75837]
[1736173128311,1.127046,3626.4,3625.0,0.5625]
[1736173128617,1.127046,3626.4,3625.4,2.75831]
[1736173129336,1.127046,3626.4,3625.0,0.5625]
[1736173129337,2.75764,3626.3,3625.2,2.75845]
[1736173129536,0.7739,3626.4,3625.3,2.75838]
[1736173129829,0.0344756,3626.3,3625.0,0.5625]
[1736173130143,2.75763,3626.3,3625.0,0.5625]
[1736173130302,0.0344756,3626.2,3625.2,2.75844]
[1736173130628,0.39080116,3626.2,3625.2,2.75844]
[1736173130923,0.35632556,3626.2,3625.2,2.75844]
[1736173131135,0.35632556,3626.2,3625.0,0.005]
[1736173131348,0.03447617,3626.1,3625.0,0.005]
[1736173131632,0.7722,3626.0,3625.0,0.005]
[1736173131892,2.79248053,3625.9,3625.0,0.005]
[1736173132021,2.75815,3625.7,3625.0,0.005]
[1736173132360,0.03448219,3625.6,3625.0,0.005]
[1736173132516,2.75795,3625.9,3625.0,0.005]
[1736173132724,0.353015,3625.8,3625.0,0.005]
[1736173133068,0.03448112,3625.7,3625.0,0.005]
[1736173133360,2.79259112,3625.7,3625.0,0.005]
[1736173133723,2.75816,3625.6,3625.0,0.005]
[1736173133922,0.03448122,3625.5,3625.0,0.005]
[1736173134123,0.03448122,3625.7,3625.0,0.005]
[1736173134353,0.39094705,3625.7,3625.0,0.005]
[1736173134537,0.03448093,3625.7,3625.0,0.005]
[1736173135235,2.75805,3625.8,3625.0,0.005]
[1736173135434,0.03448121,3625.7,3625.0,0.005]
[1736173136085,0.03447817,3625.9,3625.0,0.005]
[1736173136242,0.8229,3626.4,3625.3,0.0075]
[1736173136424,0.8229,3626.4,3625.3,2.75832]
[1736173136777,0.8229,3626.4,3625.1,0.7575]
[1736173136778,0.8229,3626.4,3625.4,2.75829]
[1736173136986,0.8229,3626.4,3625.1,0.7575]
[1736173137142,0.8229,3626.4,3625.5,2.75822]
[1736173137338,0.8229,3626.4,3625.6,2.75811]
[1736173137544,0.8229,3626.4,3625.2,0.5575]
[1736173137765,0.03447284,3626.3,3625.2,0.5575]
[1736173137972,0.8229,3626.4,3625.3,2.75832]
[1736173138180,3.938517,3626.4,3625.1,0.7575]
[1736173138381,0.03447517,3626.3,3625.0,0.005]
[1736173138684,0.03447517,3626.3,3625.0,0.57]
[1736173138991,0.03447435,3626.3,3625.0,0.767]
[1736173139287,0.03447435,3626.3,3625.0,0.005]
[1736173139500,2.75805,3625.8,3625.0,0.005]
[1736173139863,2.75788,3626.0,3625.0,0.005]
[1736173140058,2.75788,3626.0,3625.0,2.76361]
[1736173140598,2.79243947,3625.9,3625.0,0.005]
[1736173140895,0.36149244,3626.2,3625.0,0.005]
[1736173141101,0.8229,3626.4,3625.0,0.005]
[1736173141484,2.75772,3626.2,3625.1,2.75853]
[1736173141799,2.75763,3626.3,3625.3,2.75836]
[1736173142018,0.034476,3626.2,3625.1,2.75851]
[1736173142439,2.792206,3626.2,3625.1,2.75851]
[1736173142576,0.3615106,3626.1,3625.1,2.75851]
[1736173143081,0.3615106,3626.1,3625.0,0.005]
[1736173143308,2.75801,3625.8,3625.0,0.005]
[1736173143512,2.75784,3626.1,3625.0,2.76355]
[1736173143711,2.75831,3625.4,3625.0,0.005]
[1736173143985,0.7799,3625.2,3625.0,0.005]
[1736173144382,0.03448169,3625.1,3625.0,0.005]
[1736173145113,2.75862,3625.0,3624.9,0.17789456]
[1736173145288,3.89565908,3625.2,3624.9,0.17789456]
[1736173145485,2.75855,3625.1,3624.9,0.17789456]
[1736173145708,1.13716908,3625.2,3624.9,0.17789456]
[1736173146040,0.7799,3625.2,3624.9,0.17789456]
[1736173146209,0.03448436,3625.1,3624.9,0.17789456]
[1736173146727,0.03448423,3625.1,3624.9,0.17789456]
[1736173147561,0.8202,3625.6,3624.9,0.17789456]
[1736173147718,0.8202,3625.6,3624.9,2.93658456]
[1736173148147,0.8202,3626.0,3625.1,2.75853]
[1736173148380,0.8202,3626.0,3625.0,0.0075]
[1736173148522,0.8546776,3626.0,3624.9,0.17789456]
[1736173148729,2.75794,3625.9,3624.9,0.17789456]
[1736173149364,0.8202,3626.0,3624.9,0.17789456]
[1736173149518,0.8202,3626.0,3625.2,2.75841]
[1736173149722,2.7575,3626.5,3625.0,0.0075]
[1736173149965,1.1276285,3626.8,3625.0,0.0075]
[1736173149966,1.8872285,3626.8,3625.2,3.32346]
[1736173150188,1.8872285,3626.8,3626.1,2.75775]
[1736173150325,1.92169648,3626.8,3626.1,2.75775]
[1736173150658,1.1276285,3626.8,3626.0,0.015]
[1736173151074,1.1276285,3626.8,3626.3,2.75761]
[1736173151444,1.1276285,3626.8,3625.6,0.7957]
[1736173151445,1.1276285,3626.8,3625.7,0.565]
[1736173151644,1.69144276,3626.9,3625.7,0.565]
[1736173151645,0.7776,3627.2,3625.7,0.565]
[1736173151845,0.19052285,3627.1,3626.4,2.75753]
[1736173152138,0.22498826,3627.1,3625.7,0.55]
[1736173152357,0.7579,3627.0,3625.6,0.7882]
[1736173152558,0.03447278,3626.9,3625.7,2.75804]
[1736173152865,3.51502,3627.0,3625.8,2.758]
[1736173153024,3.16222429,3626.9,3625.8,2.758]
[1736173153523,3.12775429,3626.9,3625.8,2.758]
[1736173153722,2.75732,3626.7,3625.7,2.75808]
[1736173154148,0.37055429,3626.9,3625.6,0.7539]
[1736173154471,0.7579,3627.0,3625.6,0.7539]
[1736173154472,0.7579,3627.0,3625.7,0.565]
[1736173154680,1.1276285,3627.1,3626.0,0.0075]
[1736173154990,2.49114276,3627.3,3626.5,2.75745]
[1736173154991,0.7997,3627.3,3626.5,2.75745]
[1736173155193,1.76874008,3627.5,3626.5,0.565]
[1736173155405,1.1276285,3627.5,3627.0,2.75708]
[1736173155787,1.1276285,3627.5,3627.1,2.75701]
[1736173156119,1.1276285,3627.5,3626.9,2.75715]
[1736173156694,0.8321,3627.7,3627.0,2.75706]
[1736173156988,0.86655861,3627.7,3627.0,2.75706]
[1736173157200,0.03445862,3628.0,3626.7,0.0075]
[1736173157400,0.36757299,3628.0,3627.1,0.8136]
[1736173157614,2.79086862,3627.9,3627.1,0.8136]
[1736173157812,2.79086862,3627.9,3626.9,2.75716]
[1736173158107,2.79086862,3627.9,3626.6,0.0075]
[1736173158108,2.75657,3627.7,3626.4,0.8136]
[1736173158308,1.08940286,3627.6,3626.5,2.75747]
[1736173158509,3.60140967,3627.6,3626.5,2.75747]
[1736173158711,2.75674,3627.5,3626.4,0.8136]
[1736173158869,0.8103,3627.6,3626.7,2.75726]
[1736173159233,0.36757299,3628.0,3626.4,0.8136]
[1736173159234,1.19747299,3628.0,3627.1,2.75702]
[1736173159506,2.32510149,3628.0,3627.3,2.7568]
[1736173159826,0.40165443,3627.9,3626.9,2.75716]
[1736173159973,2.79094806,3627.8,3626.6,2.75733]
[1736173160318,0.40165443,3627.9,3626.6,2.75733]
[1736173160471,2.75664,3627.6,3626.6,2.75733]
[1736173160824,2.7565,3627.8,3626.6,2.75733]
[1736173161115,0.78545984,3627.7,3626.5,0.0075]
[1736173161331,0.75099704,3627.7,3626.7,2.75731]
[1736173161684,0.03446131,3627.6,3626.8,2.75724]
[1736173161889,0.75099704,3627.7,3626.9,2.75712]
[1736173162098,0.03446063,3627.8,3626.9,2.75712]
[1736173162302,0.03446063,3627.8,3627.1,2.75702]
[1736173162509,0.8299,3628.0,3626.5,0.5575]
[1736173162706,0.03445863,3627.8,3626.5,0.5575]
[1736173162908,3.15434301,3627.6,3625.8,0.8197]
[1736173163092,0.7612,3626.8,3625.8,3.57764]
[1736173163625,0.03446938,3626.7,3625.8,2.75794]
[1736173163946,0.7612,3626.8,3625.9,2.75786]
[1736173164723,0.7612,3626.8,3626.0,2.75779]
[1736173165537,0.7612,3626.8,3626.1,2.75773]
[1736173165755,0.7612,3626.8,3625.9,0.015]
[1736173165905,0.8087,3627.2,3625.9,2.7729]
[1736173166102,1.51387886,3627.2,3626.3,2.75758]
[1736173166303,0.03446643,3627.1,3626.1,2.75776]
[1736173166505,2.79150643,3627.1,3626.1,2.75776]
[1736173166749,0.03446643,3627.1,3626.2,0.7527]
[1736173166903,1.1276285,3627.5,3627.1,2.75701]
[1736173167108,1.48861563,3627.5,3626.2,3.90704301]
[1736173167303,1.1276285,3627.5,3626.9,2.75715]
[1736173167759,2.7564,3628.0,3626.9,2.75715]
[1736173167904,0.03445903,3627.7,3626.9,2.75715]